bitfinex/quotes_ETHUSD_20220123
["timestamp","ask_amount","ask_price","bid_price","bid_amount"]
[1642912581227,0.38448203,2442.2,2442.1,0.01274781]
[1642912581429,0.494,2442.7,2442.2,0.00795793]
[1642912581628,0.38448203,2442.6,2442.2,1.34600233]
[1642912582028,0.38448203,2442.6,2442.3,0.00738951]
[1642912582464,0.494,2442.7,2442.3,0.00738951]
[1642912583268,0.494,2442.7,2442.5,1.30917739]
[1642912583475,0.494,2443.1,2442.6,2.91268833]
[1642912583676,0.494,2443.1,2442.6,2.91837257]
[1642912583870,1.06994429,2443.8,2442.8,0.07294375]
[1642912584069,0.494,2443.8,2443.0,0.01292042]
[1642912584269,0.43141092,2443.7,2443.2,1.28616654]
[1642912584668,0.64486334,2443.7,2443.3,0.00170527]
[1642912584869,0.08265033,2443.5,2443.3,0.00170527]
[1642912585070,1.00806125,2443.5,2443.1,0.00284212]
[1642912585269,0.53141092,2443.4,2443.1,0.00284212]
[1642912585469,0.43141092,2443.3,2443.1,0.00284212]
[1642912585671,0.92541092,2443.3,2443.1,0.00284212]
[1642912585926,0.92541092,2443.3,2442.8,0.13819997]
[1642912585927,0.43141092,2443.2,2442.9,0.00397897]
[1642912586221,0.92541092,2443.2,2442.9,0.00397897]
[1642912586416,0.4202299,2443.1,2442.9,0.00397897]
[1642912586820,0.4202299,2443.1,2442.9,0.00508147]
[1642912587218,0.4202299,2443.1,2443.0,0.00341054]
[1642912587418,0.4202299,2443.1,2443.0,0.00451304]
[1642912587820,0.4202299,2443.1,2443.0,0.01729663]
[1642912588018,0.4202299,2443.1,2443.0,2.91729663]
[1642912588019,2.99e-05,2443.1,2443.0,2.91729663]
[1642912588218,0.4202299,2443.1,2443.0,2.91729663]
[1642912588420,0.52237363,2443.1,2443.0,2.91729663]
[1642912588924,0.1,2443.4,2443.2,2.86628645]
[1642912589122,0.1,2443.4,2443.2,0.00110254]
[1642912589123,0.62237363,2443.4,2443.2,0.00110254]
[1642912589323,0.52237363,2443.3,2443.2,0.00110254]
[1642912589768,0.52237363,2443.3,2443.2,0.00337624]
[1642912590368,0.33975143,2443.3,2443.2,0.00337624]
[1642912591973,0.1,2443.4,2443.3,2.9]
[1642912592176,0.494,2444.0,2443.4,2.9]
[1642912592478,1.28326217,2444.3,2443.6,1.38577291]
[1642912592479,0.00341054,2444.2,2443.6,1.38577291]
[1642912592676,0.00341054,2444.2,2444.0,1.45195235]
[1642912592874,0.00284212,2444.1,2444.0,1.09976031]
[1642912593830,0.00284212,2444.1,2444.0,0.00110259]
[1642912594029,0.48684212,2444.6,2444.0,0.00110259]
[1642912594425,0.00170527,2444.4,2444.0,0.00110259]
[1642912594825,0.08265033,2444.2,2444.0,0.00110259]
[1642912595729,0.494,2444.1,2444.0,0.00110259]
[1642912596129,0.58085181,2444.1,2444.0,0.00110259]
[1642912597569,0.58085181,2444.1,2443.3,0.01461656]
[1642912597968,0.58085181,2444.1,2443.4,0.00397897]
[1642912598371,1.60554181,2444.1,2443.4,0.00397897]
[1642912598575,1.60554181,2444.1,2443.0,0.00625266]
[1642912598576,1.3257135,2443.9,2443.0,0.00625266]
[1642912598775,0.00951227,2443.8,2443.0,0.00625266]
[1642912598977,0.59036408,2443.8,2443.0,0.00625266]
[1642912599178,0.08685181,2443.7,2443.0,0.00625266]
[1642912599379,0.494,2443.6,2443.0,0.00625266]
[1642912599579,3.5690589,2443.6,2443.0,0.00625266]
[1642912599777,0.08685181,2443.5,2443.0,0.00625266]
[1642912599978,0.494,2443.4,2443.0,0.00625266]
[1642912600378,0.08685181,2443.3,2443.0,0.00625266]
[1642912600581,0.494,2443.2,2443.0,0.00625266]
[1642912601035,2.55,2443.1,2442.9,0.4036]
[1642912601238,0.494,2443.0,2442.9,0.4036]
[1642912601450,0.58085181,2443.0,2442.2,2.31440392]
[1642912601637,0.58085181,2443.0,2442.2,2.31550653]
[1642912601840,0.58085181,2443.0,2442.3,0.00397897]
[1642912601841,0.08685181,2442.9,2442.3,0.00397897]
[1642912602039,0.494,2442.8,2442.3,0.00508161]
[1642912602437,0.494,2442.8,2442.4,0.00341054]
[1642912602637,0.494,2442.8,2442.4,0.00451318]
[1642912603037,0.494,2442.8,2442.5,0.00284212]
[1642912603038,0.58085181,2442.8,2442.5,0.00284212]
[1642912603243,0.58085181,2442.8,2442.5,0.00394476]
[1642912603638,0.58085181,2442.8,2442.6,0.0022737]
[1642912603838,0.58085181,2442.8,2442.6,0.00337634]
[1642912604239,0.58085181,2442.8,2442.7,0.00170527]
[1642912604445,0.58085181,2442.8,2442.7,0.00280791]
[1642912605478,1.95,2442.7,2442.0,2.33530381]
[1642912605679,0.494,2442.6,2442.0,2.33640645]
[1642912605879,0.494,2442.6,2442.1,0.00341054]
[1642912606079,0.494,2442.6,2442.1,0.00451321]
[1642912606280,1.60618181,2442.6,2442.1,0.00451321]
[1642912606481,1.60618181,2442.6,2442.2,0.00284212]
[1642912606681,1.60618181,2442.6,2442.2,0.00394479]
[1642912606682,2.60618181,2442.6,2442.2,0.00394479]
[1642912607185,4.2994875,2442.6,2442.3,0.0022737]
[1642912607380,2.65,2442.5,2442.3,0.00110267]
[1642912607580,2.594,2442.4,2442.3,0.00110267]
[1642912607781,2.594,2442.4,2442.0,2.33530381]
[1642912607782,2.15,2442.3,2442.0,2.33530381]
[1642912607980,0.494,2442.2,2442.0,2.33530381]
[1642912608180,1.51948,2442.2,2442.1,0.00113684]
[1642912608421,1.51948,2442.2,2442.0,2.33530381]
[1642912610228,1.51948,2442.2,2440.1,10.46628179]
[1642912610229,2.9,2442.1,2440.1,10.46628179]
[1642912610527,0.494,2442.0,2441.0,0.00625266]
[1642912610925,0.494,2442.0,2440.8,0.00738951]
[1642912611126,0.494,2442.0,2440.7,2.2132]
[1642912611127,0.494,2442.0,2440.7,1.97058951]
[1642912611329,0.00625266,2441.9,2440.8,1.51142445]
[1642912611536,0.00625266,2441.9,2440.6,0.01201203]
[1642912611537,0.494,2441.8,2440.6,0.01201203]
[1642912611729,2.5,2441.7,2440.5,0.100212]
[1642912611928,0.494,2441.6,2440.5,0.100212]
[1642912612172,0.494,2441.6,2440.6,0.00113685]
[1642912612173,0.49854739,2441.6,2440.6,0.00113685]
[1642912612374,0.00397897,2441.5,2441.0,1.17812679]
[1642912612575,0.494,2441.4,2441.0,1.17812679]
[1642912612773,0.49741054,2441.4,2441.0,1.17812679]
[1642912612973,0.00284212,2441.3,2441.0,1.17812679]
[1642912613176,0.494,2441.2,2440.6,0.00113685]
[1642912613378,0.4962737,2441.2,2440.6,0.00113685]
[1642912613578,1.02565,2441.8,2441.2,0.99311583]
[1642912613781,0.494,2441.7,2441.2,0.99311583]
[1642912614078,0.49741054,2441.7,2441.2,0.95311583]
[1642912615080,2.01490905,2441.7,2441.2,0.95311583]
[1642912615479,0.49741054,2441.7,2441.2,0.95311583]
[1642912616119,0.49741054,2441.7,2441.5,1.23075035]
[1642912616325,0.49741054,2441.7,2441.3,2.27685116]
[1642912616521,0.49741054,2441.7,2441.4,1.33688669]
[1642912616722,0.49741054,2441.7,2441.2,0.95311583]
[1642912617622,0.49741054,2441.7,2441.4,1.54198562]
[1642912617821,0.49741054,2441.7,2441.2,2.47236213]
[1642912618528,1.054e-05,2441.7,2441.4,0.01264244]
[1642912618728,1.054e-05,2441.7,2441.5,0.10027858]
[1642912618928,1.054e-05,2441.7,2441.6,3.11720157]
[1642912619127,1.054e-05,2441.7,2441.6,5.47111539]
[1642912619526,1.054e-05,2441.7,2441.6,29.47111539]
[1642912619978,1.054e-05,2441.7,2441.6,5.47111539]
[1642912620176,1.054e-05,2441.7,2441.6,2.91235157]
[1642912620373,1.054e-05,2441.7,2441.6,0.01235157]
[1642912620579,1.054e-05,2441.7,2441.5,3.9380263]
[1642912620974,1.054e-05,2441.7,2441.5,0.0011263]
[1642912621374,1.054e-05,2441.7,2441.3,0.00226315]
[1642912622777,0.494,2441.6,2441.3,0.00226315]
[1642912625346,0.494,2441.6,2441.2,0.95311583]
[1642912625347,4.44321272,2441.5,2441.2,0.95311583]
[1642912625543,4.44321272,2441.5,2440.1,0.00227324]
[1642912625544,1.02584,2441.3,2440.1,0.00227324]
[1642912625749,0.49786872,2441.2,2440.1,0.00227324]
[1642912625944,0.494,2441.2,2440.3,0.00568424]
[1642912626544,0.494,2441.2,2440.1,0.00682108]
[1642912627575,0.494,2441.2,2440.1,0.01964763]
[1642912627978,0.494,2441.2,2440.2,0.00625266]
[1642912628377,0.494,2441.2,2440.3,1.31108659]
[1642912628777,0.494,2441.2,2440.4,0.00511581]
[1642912628977,0.494,2441.2,2440.1,0.01282655]
[1642912629181,0.494,2441.2,2439.6,2.4258]
[1642912629182,1.02599,2441.0,2439.6,2.4258]
[1642912629481,0.49684212,2440.9,2440.2,0.00113685]
[1642912629678,0.58369393,2440.9,2440.2,0.00113685]
[1642912629878,0.00227369,2440.8,2440.2,0.00113685]
[1642912630078,0.494,2440.7,2440.2,0.00113685]
[1642912630278,0.49570527,2440.7,2440.2,0.00113685]
[1642912630482,0.00113684,2440.6,2440.1,0.00170527]
[1642912630680,0.494,2440.5,2440.1,0.00170527]
[1642912631325,0.494,2440.5,2440.4,1.21116625]
[1642912631723,0.494,2440.5,2440.1,0.00170527]
[1642912633527,0.494,2440.5,2439.9,0.00284212]
[1642912634327,0.494,2440.5,2440.0,1.13362986]
[1642912634528,0.494,2440.5,2439.9,0.00284212]
[1642912634774,0.494,2440.5,2440.1,0.00170527]
[1642912634974,0.494,2440.5,2439.9,0.00284212]
[1642912635973,0.494,2440.5,2439.9,1.18505911]
[1642912636374,0.494,2440.5,2440.0,0.0022737]
[1642912638283,0.00113684,2440.6,2440.5,0.98799999]
[1642912639532,0.58198865,2440.6,2440.5,0.98799999]
[1642912640132,2.9,2440.5,2440.0,0.0022737]
[1642912640331,0.494,2440.4,2440.0,0.0022737]
[1642912640530,0.58085181,2440.4,2439.7,0.00397897]
[1642912640731,0.494,2440.4,2439.7,0.00397897]
[1642912640934,0.08685181,2440.3,2439.7,0.00397897]
[1642912641133,0.494,2440.2,2439.7,0.00397897]
[1642912641532,0.58085181,2440.2,2439.5,0.00511581]
[1642912642189,1.02636,2440.1,2439.5,0.00511581]
[1642912642378,0.494,2440.0,2439.3,0.00625266]
[1642912642577,0.494,2440.0,2439.0,3.8028]
[1642912642578,0.58085181,2440.0,2439.1,0.00738951]
[1642912642777,2.88685181,2439.9,2439.0,3.76018951]
[1642912642977,0.494,2439.8,2438.5,1.18221699]
[1642912643180,2.08483078,2439.8,2438.5,1.18221699]
[1642912643377,1.02655,2439.6,2438.6,0.00284211]
[1642912643585,0.494,2439.5,2438.6,0.00284211]
[1642912643783,0.58312551,2439.5,2438.6,0.00284211]
[1642912643983,0.00170527,2439.4,2438.6,0.00284211]
[1642912644185,0.494,2439.3,2438.6,0.00284211]
[1642912644383,0.49513685,2439.3,2438.6,0.00284211]
[1642912644786,0.49513685,2439.3,2438.6,1.09455496]
[1642912644986,0.49513685,2439.3,2438.6,3.43088368]
[1642912645186,0.49513685,2439.3,2438.7,0.00227369]
[1642912645585,0.00113685,2439.3,2438.7,0.00227369]
[1642912645787,0.00113685,2439.3,2438.7,3.48944102]
[1642912646027,0.00113685,2439.3,2439.2,1.248727]
[1642912646426,0.00113685,2439.3,2438.8,0.00170527]
[1642912646827,0.00113685,2439.3,2438.7,0.00227369]
[1642912647429,0.00113685,2439.3,2439.1,1.37978859]
[1642912647628,0.00113685,2439.3,2439.2,4.47724715]
[1642912647831,0.00113685,2439.3,2439.2,4.68209715]
[1642912648029,3.685e-05,2439.3,2439.2,4.69478407]
[1642912648230,2.28548,2441.1,2439.3,2.9033737]
[1642912648430,0.494,2440.9,2440.0,0.01280678]
[1642912648635,0.494,2440.9,2439.4,6.26220521]
[1642912648636,0.00682108,2440.5,2439.4,6.20236503]
[1642912649033,0.00625266,2440.4,2439.4,6.20236503]
[1642912649232,0.00625266,2440.4,2439.7,1.39934636]
[1642912649532,0.00568423,2440.3,2439.7,1.39934636]
[1642912649783,0.00568423,2440.3,2439.3,0.0033737]
[1642912649993,0.49911581,2440.2,2439.3,0.0033737]
[1642912650183,0.58596762,2440.2,2439.3,0.0033737]
[1642912650384,0.00454739,2440.1,2439.3,0.0033737]
[1642912650584,0.494,2440.0,2439.3,0.0033737]
[1642912650783,1.61133397,2440.0,2439.3,0.0033737]
[1642912650984,0.00341054,2439.9,2439.3,0.0033737]
[1642912651183,0.494,2439.8,2439.3,0.0033737]
[1642912651387,0.58369393,2439.8,2439.3,0.0033737]
[1642912651582,0.0891255,2439.7,2439.3,0.0033737]
[1642912651785,0.494,2439.6,2439.3,0.0033737]
[1642912651989,0.58255708,2439.6,2439.3,0.0033737]
[1642912652186,0.08798866,2439.5,2439.3,0.0033737]
[1642912652387,0.494,2439.4,2439.3,0.0033737]
[1642912652992,0.58085181,2439.4,2439.3,0.0033737]
[1642912655128,0.79445356,2439.4,2439.3,0.0033737]
[1642912656031,0.70760175,2439.4,2439.3,0.0033737]
[1642912656232,0.00113685,2439.5,2439.3,0.0033737]
[1642912659584,0.49513685,2439.5,2439.3,0.0033737]
[1642912659781,0.58198866,2439.5,2439.3,0.0033737]
[1642912660584,0.49513685,2439.5,2439.3,0.0033737]
[1642912662536,0.21368051,2440.3,2439.4,3.11740861]
[1642912662731,0.494,2440.8,2439.6,1.48541055]
[1642912662930,0.00284211,2440.0,2439.8,0.04492888]
[1642912663230,0.707577,2441.1,2439.9,3.69755761]
[1642912663433,0.494,2441.1,2440.0,2.39202859]
[1642912663631,0.00682108,2440.7,2439.7,2.62695898]
[1642912664131,0.00625265,2440.6,2439.7,2.62695898]
[1642912664530,0.00568423,2440.5,2440.2,1.29123467]
[1642912664778,0.00568423,2440.5,2440.3,2.27769401]
[1642912664982,0.00511581,2440.4,2440.3,2.27769401]
[1642912665176,0.00511581,2440.4,2440.3,2.43254401]
[1642912665376,0.00511581,2440.4,2440.3,2.22769401]
[1642912665980,0.00511581,2440.4,2440.3,3.2378]
[1642912666583,0.00511581,2440.4,2440.2,1.29123467]
[1642912666983,0.00454738,2440.3,2440.2,1.29123467]
[1642912667984,0.61553747,2442.0,2440.5,2.9]
[1642912668183,0.04,2443.1,2440.5,2.9]
[1642912668184,0.04,2443.1,2441.8,0.11864048]
[1642912668443,0.04,2443.7,2443.1,0.10371194]
[1642912668643,0.04,2444.1,2443.5,0.01228695]
[1642912668846,0.04,2444.1,2443.6,1.39439873]
[1642912669044,7.319,2446.0,2444.8,1.45541556]
[1642912669045,1.147,2446.0,2444.8,1.45541556]
[1642912669250,0.494,2446.7,2444.9,2.37994689]
[1642912669443,5.0,2446.8,2445.0,0.03304785]
[1642912669942,0.03581068,2446.6,2444.9,2.33632872]
[1642912670146,0.03581068,2446.6,2445.8,1.13641211]
[1642912670345,0.03798796,2446.8,2445.8,1.13641211]
[1642912670346,0.03524226,2446.5,2445.8,1.13641211]
[1642912670645,35.52341068,2447.0,2445.8,1.13641211]
[1642912670646,0.03467384,2446.4,2445.8,1.13641211]
[1642912671043,35.52341068,2447.0,2445.7,0.311]
[1642912671044,0.03410541,2446.3,2445.7,0.311]
[1642912671245,0.03410541,2446.3,2444.8,0.19487977]
[1642912671246,0.03410541,2446.3,2444.9,2.33632872]
[1642912671446,0.03353699,2446.2,2444.7,2.43654072]
[1642912671647,0.08265033,2446.1,2444.7,2.43654072]
[1642912671846,2.2,2446.0,2444.4,2.26474069]
[1642912672200,0.03183172,2445.9,2444.5,3.75508559]
[1642912672395,0.03183172,2445.9,2444.7,0.03739002]
[1642912672601,0.08265033,2446.1,2444.7,0.03739002]
[1642912672602,0.03126329,2445.8,2444.8,0.01262615]
[1642912672797,0.03126329,2445.8,2444.9,0.53275499]
[1642912672995,0.04,2446.2,2445.0,2.84117872]
[1642912673199,0.494,2447.6,2445.4,0.01242683]
[1642912673399,1.1782,2448.0,2445.9,0.01225924]
[1642912673400,0.00170527,2446.0,2445.9,0.01225924]
[1642912673600,0.00170527,2446.0,2445.9,0.21710924]
[1642912673800,0.01250532,2447.9,2445.9,0.21710924]
[1642912674000,0.08265033,2446.8,2445.9,2.55343796]
[1642912674197,1.11545994,2446.7,2446.1,1.27549566]
[1642912674401,1.11545994,2446.7,2445.5,0.00113685]
[1642912674402,1.12114418,2446.7,2445.5,0.49513685]
[1642912674601,0.00511581,2446.6,2445.5,0.00113685]
[1642912674902,1.11545994,2446.7,2445.6,2.32157073]
[1642912674903,0.00454739,2446.5,2445.6,2.32157073]
[1642912675300,0.00397897,2446.4,2445.7,2.62351936]
[1642912675502,7.897e-05,2446.4,2445.7,3.23605777]
[1642912675700,0.10021201,2447.4,2446.3,2.91271396]
[1642912675930,0.10021201,2447.4,2446.4,2.70960822]
[1642912676126,0.00519478,2447.3,2446.3,0.01271396]
[1642912676529,0.08265033,2446.4,2446.3,0.01271396]
[1642912676731,0.08265033,2446.4,2445.8,2.32490231]
[1642912677133,0.494,2447.0,2445.9,2.32433388]
[1642912677432,0.00292108,2446.9,2446.0,0.00219473]
[1642912677628,0.00292108,2446.9,2446.2,1.53780766]
[1642912677629,1.22486934,2446.9,2446.2,1.53780766]
[1642912677828,1.22486934,2446.9,2446.0,0.00219473]
[1642912677829,0.00235266,2446.8,2446.0,0.00219473]
[1642912678031,3.81344399,2446.8,2446.0,0.00219473]
[1642912678231,0.08443457,2446.7,2446.0,0.00219473]
[1642912678633,0.00121581,2446.6,2446.0,0.00219473]
[1642912678832,1.39633953,2446.5,2445.2,0.00674212]
[1642912679434,0.00121581,2446.6,2445.3,0.20485]
[1642912679680,0.00121581,2446.6,2445.6,0.01211312]
[1642912680083,0.00121581,2446.6,2445.7,0.0039]
[1642912680482,1.20504388,2446.6,2445.9,1.46907355]
[1642912680886,1.20504388,2446.6,2446.0,0.00219473]
[1642912681284,1.20504388,2446.6,2445.7,0.0039]
[1642912681684,3.60750067,2446.5,2445.7,0.0039]
[1642912681886,1.37540489,2445.8,2445.1,0.00731054]
[1642912682986,3.08448413,2445.7,2445.1,0.00731054]
[1642912683439,0.494,2445.6,2445.1,0.00731054]
[1642912683631,0.494,2445.6,2444.4,0.0112895]
[1642912683632,1.30690336,2445.2,2444.4,0.0112895]
[1642912683931,0.08685181,2446.1,2445.2,2.40624041]
[1642912683932,0.494,2445.3,2445.2,2.40624041]
[1642912684331,0.494,2445.3,2445.2,2.41298253]
[1642912684931,2.04373423,2445.3,2445.2,2.41298253]
[1642912685136,2.04373423,2445.3,2445.2,0.14332676]
[1642912686033,2.64373423,2445.3,2445.2,0.14332676]
[1642912686235,2.64373423,2445.3,2443.7,0.01226745]
[1642912686236,2.9,2445.2,2443.7,0.01226745]
[1642912686434,0.494,2445.1,2443.7,0.01226745]
[1642912686636,1.494,2445.1,2443.8,0.00795792]
[1642912686837,0.494,2445.1,2443.8,0.00795792]
[1642912687291,0.794,2445.1,2443.8,0.00795792]
[1642912687494,1.28592913,2444.4,2443.8,0.00795792]
[1642912687698,0.494,2445.1,2443.8,0.00795792]
[1642912688699,1.27930169,2444.9,2444.2,1.15613443]
[1642912688895,1.27930169,2444.9,2443.8,0.00795792]
[1642912689098,1.27930169,2444.9,2443.7,0.01226745]
[1642912689099,1.27930169,2444.9,2444.3,0.00511581]
[1642912690097,1.09591296,2444.5,2444.3,0.00511581]
[1642912690303,1.09591296,2444.5,2443.9,0.0073895]
[1642912690699,1.58991296,2444.5,2443.9,0.0073895]
[1642912690948,1.58991296,2444.5,2443.2,0.01136847]
[1642912691138,1.58991296,2444.5,2443.0,0.02487196]
[1642912691342,1.58991296,2444.5,2443.1,0.01193689]
[1642912691544,1.4228614,2443.9,2443.1,1.39789109]
[1642912691940,1.4228614,2443.9,2443.2,0.01136847]
[1642912692339,0.494,2444.2,2443.2,0.01136847]
[1642912693346,1.44805569,2443.9,2443.2,0.01136847]
[1642912693951,0.494,2444.5,2443.2,2.78285722]
[1642912694149,7.61819997,2445.3,2444.2,0.05181476]
[1642912694349,7.61819997,2445.3,2444.5,0.10223094]
[1642912694782,7.61819997,2445.3,2444.6,0.00341054]
[1642912695383,0.13819997,2445.3,2444.6,0.00341054]
[1642912696181,1.2634524,2444.9,2444.6,0.00341054]
[1642912698191,1.7574524,2444.9,2444.6,0.00341054]
[1642912699435,2.9,2444.8,2443.9,4.34416706]
[1642912699637,1.494,2444.7,2443.9,4.34416706]
[1642912699934,1.494,2444.7,2444.0,0.00341054]
[1642912699935,0.494,2444.7,2444.0,0.00341054]
[1642912700333,0.794,2444.7,2444.0,0.00341054]
[1642912700536,1.10173108,2444.3,2444.0,0.00341054]
[1642912700746,1.59573108,2444.3,2444.0,0.00341054]
[1642912701640,2.98685181,2444.2,2443.9,3.2816776]
[1642912701839,2.98685181,2444.2,2442.7,0.01217014]
[1642912701840,1.519646,2443.3,2442.7,0.01217014]
[1642912702037,3.394,2444.1,2442.6,1.5144595]
[1642912702038,0.494,2443.4,2442.6,1.5144595]
[1642912702284,0.494,2443.4,2442.8,0.00682108]
[1642912702882,0.494,2444.0,2442.9,0.01273833]
[1642912703083,0.00113685,2444.2,2443.6,0.01240719]
[1642912703387,0.00113685,2444.2,2443.7,0.20655527]
[1642912703587,0.00113685,2444.2,2444.1,2.91200492]
[1642912703789,0.03798796,2445.4,2444.9,0.0022737]
[1642912703987,0.494,2445.9,2444.9,0.0022737]
[1642912704185,0.494,2445.9,2444.9,1.53392089]
[1642912704186,0.00568423,2445.2,2444.9,1.53392089]
[1642912704386,0.00568423,2445.2,2444.9,0.0022737]
[1642912704587,1.30477179,2445.7,2444.9,0.0022737]
[1642912704588,0.00511581,2445.1,2444.9,0.0022737]
[1642912704986,1.30477179,2445.7,2444.9,0.0022737]
[1642912704987,0.00454739,2445.0,2444.9,0.0022737]
[1642912706836,1.70454739,2445.0,2444.9,0.0022737]
[1642912707837,2.19854739,2445.0,2444.9,0.0022737]
[1642912708647,2.2853992,2445.0,2444.9,0.0022737]
[1642912708844,2.19854739,2445.0,2444.9,0.0022737]
[1642912709243,0.00454739,2445.0,2444.9,0.0022737]
[1642912710579,25.08685181,2445.8,2444.9,0.0022737]
[1642912710580,24.06280917,2445.8,2444.9,0.0022737]
[1642912710781,0.494,2445.7,2444.9,0.0022737]
[1642912710982,0.00170527,2445.3,2444.9,0.0022737]
[1642912711483,1.44976621,2445.2,2444.9,0.0022737]
[1642912716537,1.44976621,2445.2,2442.6,0.52275015]
[1642912716538,3.68751395,2444.9,2442.6,0.52275015]
[1642912716744,1.0250916,2443.6,2442.7,2.08803379]
[1642912716937,1.0250916,2443.6,2442.7,0.0119369]
[1642912716938,1.17362489,2443.5,2442.7,0.0119369]
[1642912717194,1.17362489,2443.5,2441.3,1.3944738]
[1642912717195,2.14758843,2443.5,2441.3,1.3944738]
[1642912717392,2.14758843,2443.5,2440.7,1.3944738]
[1642912717393,6.172,2442.7,2440.7,1.3944738]
[1642912717592,1.39443473,2441.5,2440.8,3.48470015]
[1642912717891,0.78353498,2441.4,2440.8,0.01241859]
[1642912718089,0.78353498,2441.4,2440.9,0.00284211]
[1642912718493,0.20449,2442.3,2441.4,1.56706996]
[1642912718494,0.494,2441.5,2441.4,1.56706996]
[1642912718694,0.9624,2441.5,2441.4,2.80807679]
[1642912719097,1.25938276,2442.2,2441.4,5.20998602]
[1642912719098,0.494,2441.8,2441.4,5.20998602]
[1642912719298,0.00454739,2442.2,2442.1,1.81277564]
[1642912719499,0.494,2442.4,2442.1,0.01277564]
[1642912719898,0.00511581,2442.3,2441.6,2.38915042]
[1642912720198,0.86463739,2442.2,2441.4,1.57939182]
[1642912720401,0.86463739,2442.2,2439.6,0.97962184]
[1642912720402,2.9,2442.0,2439.6,0.97962184]
[1642912720602,2.9,2442.0,2439.2,0.20887181]
[1642912720603,5.0,2440.8,2439.2,0.20887181]
[1642912720800,5.0,2440.8,2438.1,6.10267779]
[1642912720801,0.21420875,2439.3,2438.1,6.10267779]
[1642912721049,0.21420875,2439.3,2436.1,33.3]
[1642912721050,0.36629,2439.2,2438.2,3.48659948]
[1642912721250,0.85502096,2438.3,2438.2,0.01534744]
[1642912721457,0.1618,2438.2,2437.3,41.21993272]
[1642912721652,0.494,2438.1,2437.6,0.00341054]
[1642912721851,1.4017,2438.0,2437.6,0.01622678]
[1642912722051,1.4017,2438.0,2437.9,2.66209943]
[1642912722348,1.05951096,2438.3,2437.9,2.66209943]
[1642912722349,0.85502096,2438.3,2438.0,4.18554318]
[1642912722550,0.20449,2438.5,2438.3,2.9]
[1642912722752,0.21420875,2439.3,2438.5,2.9]
[1642912722953,0.21420875,2439.3,2439.2,2.91209128]
[1642912723149,2.79230526,2440.0,2439.3,2.9]
[1642912723348,2.79230526,2440.0,2439.2,0.01209128]
[1642912723549,2.97927192,2439.9,2438.4,0.01229925]
[1642912723749,0.8600591,2439.3,2438.4,0.01229925]
[1642912723948,0.00909478,2439.8,2439.5,1.72011819]
[1642912724348,0.50252635,2439.7,2439.5,1.72011819]
[1642912724784,0.00795793,2439.6,2439.5,1.72011819]
[1642912724984,5.793e-05,2439.6,2439.5,2.95938483]
[1642912725189,5.793e-05,2439.6,2439.5,1.72011819]
[1642912725789,5.793e-05,2439.6,2439.5,4.62011819]
[1642912726389,5.793e-05,2439.6,2439.5,5.76422448]
[1642912726590,5.793e-05,2439.6,2439.5,4.62011819]
[1642912726793,0.494,2440.6,2439.6,2.90074207]
[1642912727093,0.00511581,2440.5,2439.6,0.20548207]
[1642912727290,0.00511581,2440.5,2439.6,0.00074207]
[1642912727590,0.0129705,2441.4,2439.7,1.56108817]
[1642912727591,4.739e-05,2440.4,2439.7,1.56108817]
[1642912727790,4.739e-05,2440.4,2439.7,1.86501975]
[1642912727990,0.0051632,2441.3,2439.8,0.20810315]
[1642912728431,0.00459478,2441.2,2439.9,0.00279473]
[1642912728835,1.29316921,2440.8,2440.3,1.10620254]
[1642912729038,1.29316921,2440.8,2439.8,0.00336315]
[1642912729235,0.00175266,2440.7,2439.8,0.00336315]
[1642912729735,0.00118423,2440.6,2439.9,1.09535436]
[1642912729936,0.00118423,2440.6,2439.9,1.30009436]
[1642912730135,0.00175266,2440.7,2440.0,0.00222631]
[1642912730535,0.0129705,2441.4,2440.0,0.00222631]
[1642912730536,0.00118423,2440.6,2440.0,0.00222631]
[1642912730734,0.00118423,2440.6,2440.3,1.18568485]
[1642912730934,0.494,2441.2,2440.3,1.18568485]
[1642912731135,1.25973073,2441.0,2440.6,1.20550369]
[1642912731336,1.25973073,2441.0,2440.3,1.18568485]
[1642912731535,0.00288951,2440.9,2440.3,1.18568485]
[1642912731735,2.32837872,2440.9,2440.0,0.00222631]
[1642912731943,0.00232108,2440.8,2440.0,0.00222631]
[1642912732180,0.00232108,2440.8,2439.8,0.00336315]
[1642912732383,0.00175266,2440.7,2440.0,1.447755]
[1642912732581,0.00175266,2440.7,2439.8,0.00336315]
[1642912732883,2.81948921,2440.9,2440.1,0.4093]
[1642912732884,3.02549344,2440.6,2440.1,0.4093]
[1642912733085,1.494,2440.5,2440.1,0.4093]
[1642912733293,0.20482,2440.4,2440.2,0.00108946]
[1642912733490,2.9,2440.2,2440.1,0.1829102]
[1642912733691,2.9,2440.2,2439.6,0.00074207]
[1642912733692,2.35,2440.1,2439.6,0.00074207]
[1642912733892,0.69882,2440.0,2439.6,0.00074207]
[1642912734091,0.494,2439.9,2439.7,0.00284212]
[1642912734689,3.10069689,2439.8,2439.7,0.00284212]
[1642912734891,3.10069689,2439.8,2437.7,1.02627]
[1642912734892,2.9,2439.6,2437.8,3.8008]
[1642912735093,0.494,2439.5,2437.8,3.8008]
[1642912735290,0.494,2439.5,2438.0,0.0096632]
[1642912735492,0.494,2439.5,2438.1,0.20474]
[1642912735695,0.20069689,2439.8,2439.3,1.37572717]
[1642912735932,2.79058705,2439.9,2439.4,0.01218554]
[1642912736131,2.79058705,2439.9,2439.4,0.01389081]
[1642912736333,2.79058705,2439.9,2439.5,0.00113684]
[1642912736734,0.7969,2440.4,2439.5,0.00113684]
[1642912736933,1.49572,2440.4,2439.5,0.00113684]
[1642912737137,0.00341054,2440.3,2439.5,0.00113684]
[1642912737331,0.494,2440.2,2438.7,0.00568423]
[1642912737532,0.20482,2440.1,2438.7,0.00568423]
[1642912737733,0.494,2440.0,2438.7,0.00568423]
[1642912737934,0.49570527,2440.0,2438.7,1.28957692]
[1642912738132,0.49570527,2440.0,2438.7,0.00568423]
[1642912738133,0.20595685,2439.9,2438.7,0.00568423]
[1642912738337,0.20595685,2439.9,2438.0,0.20474]
[1642912738338,0.51790989,2439.8,2438.8,0.00511581]
[1642912738539,0.51790989,2439.8,2438.4,0.0073895]
[1642912738540,0.01243337,2439.1,2438.4,0.0073895]
[1642912738737,0.69882,2439.0,2438.1,0.00909477]
[1642912739036,0.69882,2439.0,2437.7,0.01211486]
[1642912739037,0.494,2439.0,2437.8,0.21554004]
[1642912739236,0.494,2439.0,2438.7,2.83267772]
[1642912739705,0.00113685,2439.9,2438.9,0.20474]
[1642912739889,0.00113685,2439.9,2438.9,0.21689336]
[1642912740087,0.00113685,2439.9,2439.0,0.00397896]
[1642912740590,1.39407105,2439.4,2438.8,0.00511581]